bitfinex-derivatives/quotes_SOLF0:USTF0_20250428
["timestamp","ask_amount","ask_price","bid_price","bid_amount"]
[1745845542872,4.507162,150.8,150.68,1.9334]
[1745845543573,6.6312,150.74,150.71,6.632]
[1745845544373,6.6307,150.75,150.72,6.6318]
[1745845544571,0.3237,150.81,150.68,1.9334]
[1745845544874,4.50054232,150.8,150.68,1.9334]
[1745845545473,6.6307,150.75,150.68,1.9334]
[1745845546075,6.6307,150.75,150.72,6.6318]
[1745845546876,6.6298,150.77,150.74,6.6309]
[1745845547075,0.3237,150.81,150.68,1.9334]
[1745845547574,6.6301,150.76,150.73,6.6312]
[1745845548071,6.6305,150.75,150.73,6.6312]
[1745845548693,6.6302,150.76,150.73,6.6312]
[1745845549875,6.6302,150.76,150.68,1.9334]
[1745845550076,365.0,150.87,150.68,1.9334]
[1745845550277,4.82016874,150.86,150.69,1.21795077]
[1745845550574,6.6283,150.8,150.77,6.6292]
[1745845551480,6.6283,150.8,150.78,6.6291]
[1745845552079,6.6283,150.8,150.69,13.2661]
[1745845552381,6.6288,150.79,150.77,6.6294]
[1745845552575,0.3242,150.86,150.77,6.6294]
[1745845552977,6.6285,150.8,150.77,6.6294]
[1745845553177,6.6285,150.8,150.78,6.6289]
[1745845553480,6.6285,150.8,150.69,13.2661]
[1745845553680,6.628,150.81,150.78,6.6289]
[1745845553878,0.3242,150.86,150.69,13.2661]
[1745845554179,0.3242,150.86,150.68,1.9334]
[1745845554381,19.92,150.84,150.68,1.9334]
[1745845554585,19.92,150.82,150.68,1.9334]
[1745845554786,19.92,150.8,150.68,1.9334]
[1745845554987,0.3218,150.79,150.68,1.9334]
[1745845555588,6.6321,150.72,150.69,6.6329]
[1745845556001,0.3218,150.79,150.69,6.6329]
[1745845556386,0.3218,150.79,150.7,6.6326]
[1745845556685,6.6312,150.74,150.68,1.9334]
[1745845557292,0.3218,150.79,150.68,1.9334]
[1745845557587,0.3218,150.79,150.71,6.6319]
[1745845557790,0.3218,150.79,150.68,1.9334]
[1745845558191,6.6305,150.75,150.68,1.9334]
[1745845558396,19.92,150.85,150.69,1.9731]
[1745845558589,19.92,150.83,150.69,1.9731]
[1745845558785,4.49397408,150.82,150.74,6.6308]
[1745845559392,6.6299,150.77,150.74,6.6308]
[1745845559590,19.92,150.83,150.75,6.6304]
[1745845559788,0.3223,150.84,150.69,1.9731]
[1745845560088,21.07451605,150.86,150.76,6.6297]
[1745845560089,6.6289,150.79,150.76,6.6297]
[1745845560588,20.2423,150.86,150.75,6.6302]
[1745845560790,24.4143834,150.85,150.75,6.6302]
[1745845561089,19.92,150.85,150.75,6.6302]
[1745845561288,6.6294,150.78,150.75,6.6302]
[1745845561590,19.92,150.85,150.76,6.63]
[1745845562295,6.629,150.79,150.77,6.6296]
[1745845562592,20.2423,150.86,150.74,6.6309]
[1745845562792,37.66810399,150.85,150.74,6.6309]
[1745845563091,33.1724,150.85,150.74,6.6309]
[1745845563289,6.6299,150.77,150.74,6.6309]
[1745845563591,13.2533,150.84,150.74,6.6309]
[1745845563785,33.1733,150.84,150.74,6.6309]
[1745845564308,13.2533,150.84,150.69,1.9731]
[1745845564896,6.6294,150.78,150.69,1.9731]
[1745845565087,13.2533,150.84,150.69,1.9731]
[1745845565392,6.6295,150.78,150.75,6.6301]
[1745845565593,13.2533,150.84,150.75,6.6301]
[1745845566288,4.50333604,150.83,150.69,1.9731]
[1745845566490,20.2423,150.86,150.69,1.9731]
[1745845566689,4.5042206,150.85,150.69,1.9731]
[1745845566992,6.6288,150.79,150.77,6.6294]
[1745845567192,20.2423,150.86,150.77,6.6294]
[1745845567393,4.50573577,150.85,150.77,6.6294]
[1745845567893,6.6287,150.79,150.77,6.6294]
[1745845568092,20.2423,150.86,150.78,6.6291]
[1745845568290,4.50816094,150.85,150.69,1.9731]
[1745845568486,13.2499,150.88,150.69,1.9731]
[1745845568691,4.50916456,150.87,150.77,6.6293]
[1745845568992,4.50916456,150.86,150.71,13.2645]
[1745845569193,4.51027185,150.85,150.76,6.6297]
[1745845569394,6.6289,150.79,150.76,6.6297]
[1745845569606,6.6289,150.79,150.71,13.2645]
[1745845569896,6.6289,150.79,150.69,1.9731]
[1745845569897,33.1715,150.86,150.69,1.9731]
[1745845570197,4.51058091,150.85,150.69,1.9731]
[1745845570396,4.51058091,150.84,150.75,6.6303]
[1745845570692,4.51058091,150.83,150.69,1.9731]
[1745845570895,33.1715,150.86,150.76,6.6296]
[1745845571088,6.629,150.79,150.76,6.6296]
[1745845571295,33.1715,150.86,150.76,6.6296]
[1745845571596,4.51443118,150.85,150.69,1.9731]
[1745845571896,477.32,150.89,150.7,1.2178267]
[1745845572198,4.51588654,150.88,150.7,1.2178267]
[1745845572390,4.51588654,150.87,150.7,1.2178267]
[1745845572586,6.6253,150.87,150.7,1.2178267]
[1745845572796,365.0,150.91,150.7,1.2178267]
[1745845572995,4.5183818,150.9,150.7,1.2178267]
[1745845573195,6.6259,150.86,150.83,6.6268]
[1745845573698,6.6261,150.85,150.82,6.6272]
[1745845574192,6.6258,150.86,150.75,6.1308]
[1745845574394,19.92,150.94,150.76,1.21737315]
[1745845574589,24.44061157,150.93,150.76,1.21737315]
[1745845574898,17.76671157,150.92,150.8,6.628]
[1745845575088,4.52026309,150.91,150.75,6.1308]
[1745845575290,6.6267,150.84,150.75,6.1308]
[1745845575494,6.6267,150.84,150.81,6.6278]
[1745845575894,13.2461,150.92,150.75,6.1308]
[1745845576098,4.52182453,150.91,150.75,6.1308]
[1745845576298,4.52182453,150.9,150.8,6.628]
[1745845576599,6.6268,150.84,150.75,6.1308]
[1745845576802,6.6268,150.84,150.8,6.628]
[1745845577198,6.627,150.83,150.8,6.628]
[1745845578402,6.627,150.83,150.75,6.1308]
[1745845578403,13.2461,150.92,150.75,6.1308]
[1745845578601,4.52245344,150.91,150.75,6.1308]
[1745845578898,6.6259,150.86,150.83,6.6266]
[1745845579699,13.2461,150.92,150.75,6.1308]
[1745845579899,4.52265525,150.91,150.76,14.47705314]
[1745845580099,4.52265525,150.9,150.77,1.21735314]
[1745845580401,6.6256,150.87,150.76,13.2597]
[1745845580596,6.6256,150.87,150.77,1.21729203]
[1745845580902,6.6256,150.87,150.84,6.6263]
[1745845581706,6.6256,150.87,150.85,6.626]
[1745845582004,6.625,150.88,150.85,6.626]
[1745845582205,21.39736964,150.96,150.85,6.626]
[1745845582401,6.625,150.88,150.85,6.626]
[1745845582704,19.92,150.95,150.84,6.6263]
[1745845582900,24.43971565,150.94,150.75,6.1308]
[1745845583104,19.92,150.92,150.75,6.1308]
[1745845583404,6.6272,150.83,150.75,6.1308]
[1745845583803,19.92,150.91,150.75,6.1308]
[1745845584001,6.6272,150.83,150.75,6.1308]
[1745845584402,0.3226,150.9,150.8,6.6279]
[1745845584705,4.51908954,150.89,150.75,6.1308]
[1745845584903,4.51908954,150.88,150.75,6.1308]
[1745845585105,6.6272,150.83,150.75,6.1308]
[1745845585404,6.6272,150.83,150.8,6.6279]
[1745845585605,6.6272,150.83,150.75,6.1308]
[1745845586304,6.6266,150.84,150.81,6.6276]
[1745845586504,0.3226,150.9,150.81,6.6276]
[1745845586705,4.52096049,150.89,150.81,6.6276]
[1745845587004,6.6269,150.84,150.81,6.6276]
[1745845590607,6.627,150.83,150.81,6.6276]
[1745845593307,6.6274,150.82,150.8,6.6281]
[1745845593807,0.3226,150.9,150.75,6.1308]
[1745845594009,6.6293,150.78,150.75,10.7933]
[1745845594417,6.6298,150.77,150.74,6.6307]
[1745845594905,6.6307,150.75,150.72,6.6316]
[1745845595405,6.6307,150.75,150.7,3.9792]
[1745845596113,6.6307,150.75,150.73,6.6313]
[1745845597814,6.6307,150.75,150.72,6.6317]
[1745845598417,6.6309,150.74,150.72,6.6317]
[1745845598712,6.6309,150.74,150.7,3.9792]
[1745845598713,6.6309,150.74,150.71,6.632]
[1745845599114,6.6307,150.75,150.72,6.6316]
[1745845599315,6.6307,150.75,150.7,3.9792]
[1745845599511,33.1741,150.83,150.7,3.9792]
[1745845599711,4.5299212,150.82,150.7,3.9792]
[1745845599913,24.4499212,150.81,150.7,3.9792]
[1745845600111,24.4499212,150.8,150.7,2.0655]
[1745845600412,6.6317,150.73,150.7,6.6324]
[1745845600714,6.632,150.72,150.69,6.6329]
[1745845601112,0.3241,150.78,150.66,3.9872]
[1745845601316,4.53045536,150.77,150.66,3.9872]
[1745845601615,6.6318,150.72,150.69,6.6328]
[1745845602113,0.3241,150.78,150.66,3.9872]
[1745845602313,6.6315,150.73,150.7,6.6323]
[1745845602814,6.6315,150.73,150.66,3.9703]
[1745845603616,6.6311,150.74,150.71,6.6322]
[1745845606317,0.3241,150.78,150.66,3.9703]
[1745845606508,4.52836657,150.77,150.66,3.9703]
[1745845606712,6.6307,150.75,150.72,6.6314]
[1745845607212,0.3241,150.78,150.72,6.6314]
[1745845607916,0.3241,150.78,150.66,3.9703]
[1745845607917,19.92,150.82,150.66,3.9703]
[1745845608213,0.3237,150.85,150.67,14.48583336]
[1745845608511,4.52797062,150.84,150.68,1.21803336]
[1745845608711,24.44901335,150.83,150.67,13.2678]
[1745845608918,6.6299,150.77,150.67,13.2678]
[1745845609115,19.92,150.83,150.67,13.2678]
[1745845609317,4.52935402,150.82,150.67,13.2678]
[1745845609507,6.6302,150.76,150.67,13.2678]
[1745845609707,19.92,150.83,150.67,13.2678]
[1745845609908,6.6304,150.76,150.67,13.2678]
[1745845610516,6.6305,150.75,150.72,6.6313]
[1745845610819,6.6305,150.75,150.67,13.2678]
[1745845611115,19.92,150.83,150.67,13.2678]
[1745845611314,4.52802792,150.82,150.67,13.2678]
[1745845611516,4.52802792,150.81,150.67,13.2678]
[1745845611715,4.52802792,150.8,150.73,6.6309]
[1745845611917,4.52802792,150.79,150.67,13.2678]
[1745845612116,19.92,150.83,150.74,6.6308]
[1745845612426,4.52538701,150.82,150.74,6.6308]
[1745845612615,4.5248835,150.81,150.74,6.6308]
[1745845612815,4.5248835,150.8,150.74,6.6308]
[1745845613010,6.6303,150.76,150.74,6.6308]
[1745845613619,33.1736,150.84,150.75,6.6305]
[1745845613818,4.52447207,150.83,150.75,6.6305]
[1745845614018,4.52447207,150.82,150.67,13.2678]
[1745845614221,6.6299,150.77,150.67,13.2678]
[1745845614712,6.6301,150.76,150.74,6.6306]
[1745845615111,6.6301,150.76,150.67,13.2678]
[1745845615317,6.6301,150.76,150.73,6.6311]
[1745845615514,19.92,150.83,150.67,13.2678]
[1745845615714,4.52364268,150.82,150.67,13.2678]
[1745845616015,4.52364268,150.81,150.72,6.6316]
[1745845616315,4.52364268,150.8,150.72,6.6316]
[1745845616515,13.255,150.82,150.72,6.6316]
[1745845616821,4.52372752,150.81,150.71,6.632]
[1745845617020,6.6312,150.74,150.66,3.9703]
[1745845617220,13.2559,150.81,150.71,6.632]
[1745845617523,6.6312,150.74,150.66,3.9703]
[1745845618319,6.6312,150.74,150.71,6.6318]
[1745845618614,6.6308,150.75,150.66,3.9703]
[1745845618912,13.2559,150.81,150.72,6.6317]
[1745845619118,4.52053798,150.8,150.66,17.2386]
[1745845619320,1.15474591,150.84,150.67,1.21807003]
[1745845619519,6.6302,150.76,150.67,1.21807003]
[1745845619833,19.92,150.82,150.67,1.21807003]
[1745845620017,4.52114456,150.81,150.74,6.6307]
[1745845621124,6.6303,150.76,150.74,6.6307]
[1745845621426,19.92,150.82,150.67,13.2677]
[1745845621621,6.6303,150.76,150.68,1.21780979]
[1745845622021,6.6303,150.76,150.67,13.2677]
[1745845622926,6.6303,150.76,150.68,1.21792283]
[1745845623224,6.6303,150.76,150.67,13.2677]
[1745845623521,6.6303,150.76,150.68,1.21771005]
[1745845624054,19.92,150.84,150.68,1.21771005]
[1745845624219,4.52797468,150.83,150.68,1.21771005]
[1745845624516,4.52797468,150.82,150.68,1.21771005]
[1745845624823,13.5762,150.85,150.76,6.6298]
[1745845625026,4.52882206,150.84,150.76,6.6298]
[1745845625225,6.6291,150.79,150.76,6.6298]
[1745845625527,0.3237,150.85,150.66,3.9703]
[1745845625724,6.628,150.81,150.67,1.21715128]
[1745845625920,20.2442,150.88,150.7,13.2651]
[1745845626127,4.52993926,150.86,150.71,3.17402572]
[1745845626319,4.52993926,150.85,150.71,1.9571]
[1745845626518,4.52993926,150.84,150.72,3.8463]
[1745845626725,20.2442,150.88,150.72,3.8463]
[1745845626929,6.6282,150.81,150.72,3.8463]
[1745845627122,0.3242,150.88,150.72,3.8463]
[1745845627323,4.53146274,150.86,150.72,3.8463]
[1745845627623,0.3242,150.88,150.79,6.6284]
[1745845627624,6.6274,150.82,150.79,6.6284]
[1745845632528,6.6271,150.83,150.8,6.628]
[1745845633627,6.6274,150.82,150.8,6.628]
[1745845633828,0.3242,150.88,150.72,3.8463]
[1745845634327,6.6289,150.79,150.76,6.6296]
[1745845634530,0.3242,150.88,150.72,3.8463]
[1745845634926,0.3242,150.88,150.77,6.6296]
[1745845635130,0.3242,150.88,150.72,3.8463]
[1745845635427,6.6273,150.83,150.73,1.21631838]
[1745845635833,6.6273,150.83,150.72,3.8463]
[1745845636032,6.6267,150.84,150.73,1.21630764]
[1745845636632,6.627,150.83,150.81,6.6278]
[1745845637333,6.627,150.83,150.8,6.6281]
[1745845639842,0.3242,150.88,150.72,3.8463]
[1745845640034,4.54142773,150.86,150.73,1.21644398]
[1745845640236,4.54142773,150.86,150.72,3.8463]
[1745845640541,0.3242,150.88,150.72,3.8463]
[1745845640542,6.6264,150.85,150.82,6.6271]
[1745845640744,0.3242,150.88,150.74,13.2616]
[1745845640932,4.541047,150.87,150.74,13.2616]
[1745845641138,6.6268,150.84,150.81,6.6276]
[1745845641644,13.2419,150.97,150.75,477.2]
[1745845641940,4.5378045,150.94,150.76,1.21547782]
[1745845642140,6.6249,150.88,150.77,13.2586]
[1745845642345,6.6249,150.88,150.78,7.09827782]
[1745845642535,6.6249,150.88,150.78,5.8828]
[1745845642843,0.3259,150.94,150.8,13.2565]
[1745845643138,4.53272281,150.93,150.8,13.2565]
[1745845643343,6.6231,150.92,150.89,6.6242]
[1745845644044,6.6226,150.93,150.9,6.6238]
[1745845644248,19.92,150.98,150.9,6.6238]
[1745845644547,6.6231,150.92,150.89,6.6242]
[1745845644843,0.3259,150.99,150.81,13.2553]
[1745845645143,0.3259,150.99,150.88,6.6245]
[1745845645442,4.51795994,150.98,150.81,13.2553]
[1745845645643,4.51795994,150.97,150.82,1.21529856]
[1745845645845,4.51795994,150.96,150.82,1.21529856]
[1745845646040,6.6239,150.9,150.81,13.2553]
[1745845646542,0.3259,150.99,150.81,13.2553]
[1745845646746,6.6236,150.91,150.88,6.6245]
[1745845647147,0.3259,150.99,150.78,5.8828]
[1745845647341,24.43280875,150.98,150.79,1.21588676]
[1745845647638,4.51280875,150.97,150.79,1.21588676]
[1745845647953,4.51280875,150.96,150.8,1.21592676]
[1745845648174,4.51280875,150.96,150.78,5.8828]
[1745845648343,6.6246,150.89,150.79,1.21594352]
[1745845648846,6.6246,150.89,150.86,6.6254]
[1745845649046,6.6241,150.9,150.78,5.8828]
[1745845649344,6.6241,150.9,150.79,1.21589628]
[1745845649545,6.6243,150.89,150.87,6.6252]
[1745845649845,6.6243,150.89,150.78,5.8828]
[1745845650045,6.6243,150.89,150.79,1.21572906]
[1745845650848,6.6249,150.88,150.85,6.626]
[1745845651047,19.92,150.96,150.85,6.626]
[1745845651246,19.92,150.93,150.78,5.8828]
[1745845651741,20.2425,150.93,150.78,5.8828]
[1745845652246,19.92,150.91,150.78,5.8828]
[1745845652649,6.626,150.86,150.78,5.8828]
[1745845652949,0.3225,150.93,150.78,5.8828]
[1745845653246,0.3225,150.93,150.85,6.6258]
[1745845653453,0.3225,150.93,150.78,5.8828]
[1745845653646,6.6239,150.9,150.87,6.6249]
[1745845654148,0.3225,150.93,150.87,6.6249]
[1745845654349,0.3225,150.93,150.78,19.1404]
[1745845655047,6.6247,150.89,150.78,19.1404]
[1745845655642,6.6247,150.89,150.79,1.21603084]
[1745845655847,6.6247,150.89,150.78,19.1404]
[1745845656153,6.6247,150.89,150.86,6.6253]
[1745845657154,13.2422,150.97,150.78,5.8828]
[1745845657444,13.2422,150.97,150.79,1.21536633]
[1745845657749,6.6232,150.92,150.89,6.6241]
[1745845658249,6.6235,150.91,150.88,6.6246]
[1745845659957,0.3237,150.99,150.81,13.2553]
[1745845660251,24.43011992,150.98,150.82,1.21518259]
[1745845660443,4.51011992,150.97,150.82,1.21518259]
[1745845660748,6.6232,150.92,150.89,6.6241]
[1745845662850,6.6232,150.92,150.9,6.6238]
[1745845666853,0.3237,150.99,150.89,6.6241]
[1745845667053,24.43712981,150.98,150.89,6.6241]
[1745845667348,24.43712981,150.97,150.89,6.6241]
[1745845667553,24.43923859,150.96,150.81,13.2553]
[1745845667853,6.6241,150.9,150.81,13.2553]
[1745845668249,6.6241,150.9,150.82,1.21532451]
[1745845668453,6.6241,150.9,150.87,6.6249]
[1745845669257,6.6244,150.89,150.87,6.6249]
[1745845669458,19.92,150.95,150.81,13.2553]
[1745845669754,4.52517966,150.94,150.81,13.2553]
[1745845670156,6.6245,150.89,150.86,6.6254]
[1745845670457,19.92,150.95,150.81,13.2553]
[1745845670753,4.52823029,150.94,150.81,13.2553]
[1745845670954,4.52823029,150.94,150.82,13.2548]
[1745845671255,19.92,150.98,150.82,13.2548]
[1745845671455,6.6234,150.92,150.89,6.6241]
[1745845671851,6.6234,150.91,150.89,6.6241]
[1745845672556,6.6234,150.91,150.82,13.2548]
[1745845672557,20.2437,150.99,150.9,6.6238]
[1745845672854,24.45194323,150.98,150.9,6.6238]
[1745845673055,4.53194323,150.97,150.9,6.6238]
[1745845673250,6.6232,150.92,150.9,6.6238]
[1745845674659,19.92,151.0,150.78,5.8828]
[1745845674858,4.53492409,150.99,150.79,1.21454281]
[1745845675157,6.6214,150.96,150.93,6.6225]
[1745845675859,6.6214,150.96,150.94,6.622]
[1745845676759,6.6214,150.96,150.93,6.6222]
[1745845676960,6.6218,150.95,150.86,5.9906]
[1745845678260,20.2424,151.02,150.9,6.6236]
[1745845678462,19.92,151.0,150.9,6.6236]
[1745845678662,4.53686103,150.99,150.86,5.9906]
[1745845678863,6.6224,150.94,150.86,5.9906]
[1745845679464,6.6224,150.94,150.91,6.6232]
[1745845680659,19.92,151.0,150.86,5.9906]
[1745845680963,24.45687865,150.99,150.86,5.9906]
[1745845681157,6.6233,150.92,150.88,6.6243]
[1745845681363,19.92,150.99,150.86,5.9906]
[1745845681564,4.53722092,150.98,150.86,5.9906]
[1745845681766,6.6222,150.94,150.86,5.9906]
[1745845682569,6.6218,150.95,150.91,6.6231]
[1745845682765,20.2424,151.02,150.86,5.9906]
[1745845682962,24.45657643,151.01,150.86,5.9906]
[1745845683264,6.6216,150.96,150.92,6.6228]
[1745845683766,6.6217,150.95,150.86,5.9906]
[1745845683983,20.2424,151.02,150.86,5.9906]
[1745845684167,24.45900308,151.01,150.86,5.9906]
[1745845684468,4.53900308,151.0,150.92,6.6228]
[1745845684667,4.53900308,150.99,150.92,6.6228]
[1745845684867,19.92,151.01,150.86,5.9906]
[1745845684868,4.53876392,150.98,150.86,5.9906]
[1745845685067,4.53876392,150.97,150.86,5.9906]
[1745845685371,6.6221,150.95,150.92,6.6228]
[1745845685563,20.2424,151.02,150.86,5.9906]
[1745845685763,24.45867906,151.01,150.86,5.9906]
[1745845686071,4.53867906,151.0,150.86,5.9906]
[1745845686267,4.53867906,150.99,150.86,5.9906]
[1745845686567,4.54092766,150.98,150.93,6.6225]
[1745845686866,4.54092766,150.97,150.93,6.6225]
[1745845687172,11.16242766,150.96,150.93,6.6225]
[1745845687468,6.6215,150.96,150.93,6.6225]
[1745845687666,0.3224,151.02,150.86,5.9906]
[1745845687870,4.54135699,151.01,150.86,5.9906]
[1745845688169,4.54135699,151.0,150.87,13.2504]
[1745845688368,4.54135699,150.99,150.87,13.2504]
[1745845688565,6.621,150.97,150.87,13.2504]
[1745845688763,4.54081901,150.96,150.87,13.2504]
[1745845688963,6.6206,150.98,150.95,6.6217]
[1745845689161,4.54078754,150.97,150.95,6.6217]
[1745845689369,0.3224,151.02,150.87,13.2504]
[1745845689569,6.6208,150.97,150.94,6.6219]
[1745845689770,6.6208,150.97,150.87,13.2504]
[1745845689964,0.3224,151.02,150.87,13.2504]
[1745845690160,0.3224,151.02,150.86,5.9906]
[1745845690161,4.54023136,151.01,150.95,6.6212]
[1745845690369,4.54023136,151.0,150.88,13.2495]
[1745845690568,6.6207,150.98,150.95,6.6214]
[1745845690772,0.3224,151.02,150.95,6.6214]
[1745845690970,4.5392816,151.01,150.95,6.6214]
[1745845691169,4.5392816,151.0,150.95,6.6214]
[1745845691370,6.6208,150.97,150.95,6.6214]
[1745845692072,33.1583,151.01,150.86,5.9906]
[1745845692267,24.45891295,151.0,150.86,5.9906]
[1745845692471,6.6237,150.91,150.86,5.9906]
[1745845692674,33.16,150.99,150.86,5.9906]
[1745845692872,24.45997678,150.98,150.86,5.9906]
[1745845693071,13.24,150.99,150.86,5.9906]
[1745845693072,6.624,150.9,150.86,5.9906]
[1745845693976,6.624,150.9,150.87,6.6251]
[1745845694777,6.624,150.9,150.88,6.6247]
[1745845694976,20.2442,150.98,150.86,5.9906]
[1745845695178,4.54111494,150.97,150.86,5.9906]
[1745845695377,4.54111494,150.96,150.87,6.6249]
[1745845695578,4.54111494,150.95,150.86,5.9906]
[1745845695875,4.54111494,150.94,150.86,5.9906]
[1745845696080,6.6238,150.91,150.88,6.6246]
[1745845696489,6.6227,150.93,150.9,6.6237]
[1745845696670,0.3242,150.98,150.9,6.6237]
[1745845696870,4.54155397,150.97,150.86,5.9906]
[1745845697073,4.54155397,150.96,150.86,5.9906]
[1745845697280,6.6233,150.92,150.89,6.6241]
[1745845697781,0.3242,150.98,150.89,6.6241]
[1745845697972,24.46289153,150.97,150.86,1.9974]
[1745845698173,4.54289153,150.96,150.81,3.8327]
[1745845698372,6.6245,150.89,150.81,5.8869]
[1745845698777,6.6245,150.89,150.86,6.6256]
[1745845700379,6.6249,150.88,150.85,6.6259]
[1745845700582,20.2442,150.98,150.81,5.8869]
[1745845700780,24.46628699,150.97,150.81,5.8869]
[1745845701083,6.6255,150.87,150.84,6.6262]
[1745845701278,6.6255,150.87,150.81,5.8869]
[1745845701476,13.2434,150.95,150.81,5.8869]
[1745845701705,4.54669423,150.94,150.81,5.8869]
[1745845701983,6.6254,150.87,150.83,6.6265]
[1745845702183,6.6254,150.87,150.81,5.8869]
[1745845702788,6.6249,150.88,150.85,6.626]
[1745845706185,6.6245,150.89,150.86,6.6256]
[1745845706889,6.6248,150.88,150.85,6.6259]
[1745845707186,13.2434,150.95,150.81,5.8869]
[1745845707386,6.6245,150.89,150.86,6.6254]
[1745845707590,0.3242,150.98,150.81,5.8869]
[1745845707790,4.541137,150.97,150.81,5.8869]
[1745845707985,6.6237,150.91,150.88,6.6245]
[1745845708786,6.6239,150.9,150.88,6.6245]
[1745845710090,6.6239,150.9,150.87,6.625]
[1745845710990,6.6239,150.9,150.88,6.6247]
[1745845712496,19.92,150.96,150.81,5.8869]
[1745845712788,19.92,150.94,150.81,5.8869]
[1745845712996,6.6261,150.85,150.81,5.8869]
[1745845713386,19.92,150.92,150.81,5.8869]
[1745845713587,6.6267,150.84,150.81,5.8869]
[1745845714292,19.92,150.91,150.81,2.0542]
[1745845714497,19.92,150.91,150.73,478.0736549]
[1745845714498,19.92,150.89,150.74,4.0634]
[1745845714700,4.53705659,150.88,150.75,1.21743548]
[1745845714899,4.53705659,150.87,150.8,6.6283]
[1745845715198,13.5713,150.9,150.8,6.6283]
[1745845715799,6.6272,150.83,150.8,6.6283]
[1745845715993,6.6272,150.83,150.79,6.6285]
[1745845716194,13.5713,150.9,150.79,6.6285]
[1745845716391,4.53335361,150.89,150.74,6.0514]
[1745845716697,4.53335361,150.88,150.78,6.6291]
[1745845716889,6.6281,150.81,150.78,6.6291]
[1745845718209,33.4513,150.9,150.74,6.0514]
[1745845718500,4.52788476,150.89,150.74,6.0514]
[1745845718701,6.6276,150.82,150.79,6.6285]
[1745845718901,33.4513,150.9,150.74,6.0514]
[1745845719101,4.52623831,150.89,150.74,6.0514]
[1745845719302,4.52623831,150.88,150.74,6.0514]
[1745845719626,6.628,150.81,150.78,6.6288]
[1745845720195,6.628,150.81,150.79,6.6287]
[1745845720495,6.628,150.81,150.74,6.0514]
[1745845720903,6.628,150.81,150.78,6.6289]
[1745845721205,6.6276,150.82,150.74,6.0514]
[1745845721905,6.6276,150.82,150.79,6.6285]
[1745845722407,6.6278,150.81,150.79,6.6285]
[1745845722906,33.4513,150.9,150.79,6.6285]
[1745845723205,4.52060125,150.89,150.79,6.6285]
[1745845723406,4.52060125,150.88,150.79,6.6285]
[1745845723704,4.52060125,150.87,150.74,3.9956]
[1745845724015,37.65200125,150.86,150.74,1.988]
[1745845724307,6.63,150.76,150.69,1.9339]
[1745845724605,6.63,150.76,150.7,4.0147]
[1745845724805,33.1314,150.86,150.7,4.0147]
[1745845725007,24.39580189,150.85,150.72,6.6315]
[1745845725208,4.51580189,150.84,150.7,4.0147]
[1745845725408,4.51580189,150.83,150.7,4.0147]
[1745845725608,4.51580189,150.82,150.7,4.0147]
[1745845725907,6.6303,150.76,150.7,4.0147]
[1745845726107,0.3235,150.84,150.7,4.0147]
[1745845726308,4.51316269,150.83,150.72,6.6315]
[1745845726504,6.6304,150.76,150.72,6.6315]
[1745845726806,0.3235,150.84,150.71,6.6321]
[1745845727006,6.6308,150.75,150.71,6.6321]
[1745845727907,6.6308,150.75,150.72,6.6316]
[1745845728206,6.6302,150.76,150.66,4.0087]
[1745845728409,6.6302,150.76,150.67,1.21801291]
[1745845728704,6.6302,150.76,150.73,6.6313]
[1745845731413,6.6305,150.75,150.73,6.6313]
[1745845731611,0.3235,150.84,150.73,6.6313]
[1745845731808,6.6303,150.76,150.73,6.6313]
[1745845732511,6.6305,150.75,150.72,6.6315]
[1745845732712,0.3235,150.84,150.66,4.0087]
[1745845733009,6.6301,150.76,150.73,6.631]